bitfinex/quotes_BTCUSD_20250902
["timestamp","ask_amount","ask_price","bid_price","bid_amount"]
[1756807279561,0.53914882,110600.0,110590.0,0.0346554]
[1756807279775,0.53914882,110600.0,110590.0,0.18831881]
[1756807280912,0.53914882,110600.0,110590.0,0.18431881]
[1756807282078,0.53914882,110600.0,110590.0,0.20850576]
[1756807282704,0.68966882,110600.0,110590.0,0.20850576]
[1756807283305,0.68678882,110600.0,110590.0,0.20850576]
[1756807283440,0.53626882,110600.0,110590.0,0.20850576]
[1756807283850,0.53914882,110600.0,110590.0,0.20850576]
[1756807284473,0.53626882,110600.0,110590.0,0.20850576]
[1756807285699,0.53626882,110600.0,110590.0,0.02765759]
[1756807285956,0.53914882,110600.0,110590.0,0.02765759]
[1756807286343,0.53914882,110600.0,110590.0,0.20850576]
[1756807287771,0.53914882,110600.0,110590.0,0.02765759]
[1756807288232,0.53914882,110600.0,110590.0,0.00047064]
[1756807288450,0.87914882,110600.0,110590.0,0.00047064]
[1756807289638,0.88014882,110600.0,110590.0,0.00047064]
[1756807290250,0.88214882,110600.0,110590.0,0.00047064]
[1756807290619,0.88014882,110600.0,110590.0,0.00047064]
[1756807290854,0.87914882,110600.0,110590.0,0.00047064]
[1756807291011,0.88114882,110600.0,110590.0,0.00047064]
[1756807291349,0.88214882,110600.0,110590.0,0.00047064]
[1756807293310,0.97406481,110600.0,110590.0,0.00047064]
[1756807294023,0.99970547,110600.0,110590.0,0.00047064]
[1756807294381,1.41121322,110600.0,110590.0,0.00047064]
[1756807294563,1.20836622,110600.0,110590.0,0.00047064]
[1756807296186,1.23260765,110600.0,110590.0,0.00047064]
[1756807296603,1.22633326,110600.0,110590.0,0.00047064]
[1756807296822,1.23264153,110600.0,110590.0,0.00047064]
[1756807298335,1.23737302,110600.0,110590.0,0.00047064]
[1756807298762,1.23733302,110600.0,110590.0,0.00047064]
[1756807300209,1.26981305,110600.0,110590.0,0.00047064]
[1756807301054,1.24557162,110600.0,110590.0,0.00047064]
[1756807302772,1.31521737,110600.0,110590.0,0.00047064]
[1756807303211,1.33658385,110600.0,110590.0,0.00047064]
[1756807304676,1.33946385,110600.0,110590.0,0.00047064]
[1756807305151,1.33658385,110600.0,110590.0,0.00047064]
[1756807307069,1.18606385,110600.0,110590.0,0.00245064]
[1756807307306,1.16924178,110600.0,110590.0,0.00560064]
[1756807307526,1.30416313,110600.0,110590.0,0.00560064]
[1756807307932,1.30416313,110600.0,110590.0,0.00245064]
[1756807308140,1.33663975,110600.0,110590.0,0.00047064]
[1756807308565,1.33663945,110600.0,110590.0,0.00047064]
[1756807310027,1.18611945,110600.0,110590.0,0.00047064]
[1756807310258,1.33663945,110600.0,110590.0,0.00047064]
[1756807311185,1.33664521,110600.0,110590.0,0.00047064]
[1756807311644,1.69113719,110600.0,110590.0,0.00047064]
[1756807313059,1.69113719,110600.0,110590.0,0.00245064]
[1756807313284,1.69113719,110600.0,110590.0,0.00560064]
[1756807314151,1.54061719,110600.0,110590.0,0.00560064]
[1756807314608,1.69113719,110600.0,110590.0,0.00560064]
[1756807315283,1.69113719,110600.0,110590.0,0.00047064]
[1756807316450,1.69113719,110600.0,110590.0,0.00362064]
[1756807316663,1.69113719,110600.0,110590.0,0.00560064]
[1756807317117,1.54061719,110600.0,110590.0,0.00560064]
[1756807317342,0.98319821,110600.0,110590.0,0.00047064]
[1756807317581,1.69113719,110600.0,110590.0,0.00047064]
[1756807318260,1.69116419,110600.0,110590.0,0.00047064]
[1756807320202,1.53865419,110600.0,110590.0,0.18644881]
[1756807320445,1.10931387,110600.0,110590.0,0.00560064]
[1756807323788,0.95879387,110600.0,110590.0,0.00560064]
[1756807324134,1.10931387,110600.0,110590.0,0.18644881]
[1756807324616,1.10931387,110600.0,110590.0,0.00560064]
[1756807325365,1.1029815,110600.0,110590.0,0.00560064]
[1756807325572,0.39504252,110600.0,110590.0,0.00560064]
[1756807325779,1.1029815,110600.0,110590.0,0.00560064]
[1756807326397,1.08355202,110600.0,110590.0,0.00560064]
[1756807326818,0.85845898,110600.0,110590.0,0.00560064]
[1756807327196,1.0392908,110600.0,110590.0,0.00560064]
[1756807328215,1.0412708,110600.0,110590.0,0.00047064]
[1756807328426,1.43951773,110600.0,110590.0,0.00047064]
[1756807328689,1.53143372,110600.0,110590.0,0.00047064]
[1756807328943,1.17746423,110600.0,110590.0,0.00047064]
[1756807329385,1.53143372,110600.0,110590.0,0.00047064]
[1756807330386,1.60099372,110600.0,110590.0,0.00047064]
[1756807332840,1.59810372,110600.0,110590.0,0.00047064]
[1756807334409,1.24413423,110600.0,110590.0,0.00047064]
[1756807336789,1.26354921,110600.0,110590.0,0.00047064]
[1756807336976,1.24409423,110600.0,110590.0,0.00047064]
[1756807338142,0.44225926,110600.0,110590.0,0.00250064]
[1756807338359,0.79622875,110600.0,110590.0,0.00548064]
[1756807338540,1.15019824,110600.0,110590.0,0.00548064]
[1756807339193,1.16965526,110600.0,110590.0,0.00548064]
[1756807339615,1.17163526,110600.0,110590.0,0.00548064]
[1756807339848,1.17163526,110600.0,110590.0,0.00047064]
[1756807340581,1.96041074,110600.0,110590.0,0.00047064]
[1756807340781,1.60644125,110600.0,110590.0,0.00047064]
[1756807340979,1.61277586,110600.0,110590.0,0.00047064]
[1756807341179,1.96674535,110600.0,110590.0,0.00047064]
[1756807341572,1.9836378,110600.0,110590.0,0.00047064]
[1756807341778,1.98199524,110600.0,110590.0,0.00047064]
[1756807341978,2.05854751,110600.0,110590.0,0.00047064]
[1756807342553,2.06327281,110600.0,110590.0,0.00047064]
[1756807342746,2.09046765,110600.0,110590.0,0.00047064]
[1756807343517,1.02855918,110600.0,110590.0,0.00047064]
[1756807343752,1.00450962,110600.0,110590.0,0.00047064]
[1756807343967,2.06641809,110600.0,110590.0,0.00047064]
[1756807347080,2.03922325,110600.0,110590.0,0.00047064]
[1756807349026,2.01599619,110600.0,110590.0,0.00047064]
[1756807349264,2.03919341,110600.0,110590.0,0.00047064]
[1756807350029,2.03919218,110600.0,110590.0,0.00047064]
[1756807356580,3.23964758,110600.0,110590.0,0.00047064]
[1756807356799,1.22881986,110570.0,110560.0,0.02719484]
[1756807357011,1.54093585,110570.0,110560.0,0.03017484]
[1756807357224,1.54093585,110570.0,110560.0,0.00501]
[1756807357454,1.5623548,110570.0,110560.0,0.00501]
[1756807358163,1.60145802,110570.0,110560.0,0.00501]
[1756807359150,1.58302907,110570.0,110560.0,0.00501]
[1756807359400,1.58502907,110570.0,110560.0,0.00501]
[1756807361276,1.58698907,110570.0,110560.0,0.00501]
[1756807363185,1.54589585,110570.0,110560.0,0.00501]
[1756807366569,0.52089725,110560.0,110550.0,0.02817]
[1756807366790,1.82536171,110560.0,110550.0,0.00323]
[1756807366961,1.47139222,110560.0,110550.0,0.00538]
[1756807367520,1.49081126,110560.0,110550.0,0.00538]
[1756807367929,1.49085827,110560.0,110550.0,0.00538]
[1756807368130,1.84582776,110560.0,110550.0,0.00638]
[1756807368362,1.84778776,110560.0,110550.0,0.00638]
[1756807369557,1.69714776,110560.0,110550.0,0.00638]
[1756807369804,1.84786776,110560.0,110550.0,0.00638]
[1756807370015,1.49389827,110560.0,110550.0,0.00638]
[1756807370639,1.84786776,110560.0,110550.0,0.00638]
[1756807373623,1.49446005,110560.0,110550.0,0.00638]
[1756807375250,1.50078212,110560.0,110550.0,0.00638]
[1756807376886,0.64156136,110560.0,110550.0,0.00638]
[1756807377131,1.14016967,110560.0,110550.0,0.00638]
[1756807378803,1.14649177,110560.0,110550.0,0.00638]
[1756807379080,1.50074215,110560.0,110550.0,0.00638]
[1756807379537,1.13820967,110560.0,110550.0,0.00638]
[1756807380080,0.98752967,110560.0,110550.0,0.00638]
[1756807380283,0.00104701,110560.0,110550.0,0.21046361]
[1756807380504,0.33262426,110560.0,110550.0,0.21046361]
[1756807381023,0.33262426,110560.0,110550.0,0.23766057]
[1756807381251,0.15176701,110560.0,110550.0,0.23766057]
[1756807381391,0.33266426,110560.0,110550.0,0.23766057]
[1756807381814,0.68691464,110560.0,110550.0,0.23766057]
[1756807384514,0.15172701,110560.0,110550.0,0.23766057]
[1756807384976,0.33262426,110560.0,110550.0,0.23766057]
[1756807385449,0.68687464,110560.0,110550.0,0.23766057]
[1756807388975,0.33262426,110560.0,110550.0,0.23766057]
[1756807389174,0.68687464,110560.0,110550.0,0.23766057]
[1756807389795,0.53619464,110560.0,110550.0,0.23766057]
[1756807390004,0.68707464,110560.0,110550.0,0.23766057]
[1756807390418,0.53619464,110560.0,110550.0,0.23766057]
[1756807390652,0.68703464,110560.0,110550.0,0.23766057]
[1756807391274,0.68707464,110560.0,110550.0,0.23766057]
[1756807399156,0.50617739,110560.0,110550.0,0.23766057]
[1756807399445,0.15192701,110560.0,110550.0,0.23766057]
[1756807399883,0.00104701,110560.0,110550.0,0.23766057]
[1756807400147,0.15188701,110560.0,110550.0,0.68382694]
[1756807400574,0.15188701,110560.0,110550.0,0.32957656]
[1756807404875,0.15192701,110560.0,110550.0,0.32957656]
[1756807408448,0.15192701,110560.0,110550.0,0.30640656]
[1756807412946,0.00104701,110560.0,110550.0,0.30640656]
[1756807413155,0.15196701,110560.0,110550.0,0.30640656]
[1756807414013,0.00104701,110560.0,110550.0,0.30640656]
[1756807414195,0.15192701,110560.0,110550.0,0.30640656]
[1756807415839,0.00104701,110560.0,110550.0,0.30640656]
[1756807416033,0.15192701,110560.0,110550.0,0.30640656]
[1756807420384,0.15184701,110560.0,110550.0,0.30640656]
[1756807420800,0.50807739,110560.0,110550.0,0.20911057]
[1756807421016,0.69186464,110560.0,110550.0,0.02819696]
[1756807422317,0.78378063,110560.0,110550.0,0.02819696]
[1756807422527,0.78378063,110560.0,110550.0,0.001]
[1756807425380,0.82508529,110560.0,110550.0,0.001]
[1756807426488,1.51933567,110560.0,110550.0,0.001]
[1756807426669,1.16508529,110560.0,110550.0,0.001]
[1756807426877,1.18451839,110560.0,110550.0,0.001]
[1756807427238,1.16508529,110560.0,110550.0,0.001]
[1756807428230,1.01428529,110560.0,110550.0,0.001]
[1756807428421,1.51937567,110560.0,110550.0,0.001]
[1756807428856,1.33288286,110560.0,110550.0,0.001]
[1756807429053,1.51378011,110560.0,110550.0,0.001]
[1756807430867,1.51345866,110560.0,110550.0,0.001]
[1756807431267,1.36261866,110560.0,110550.0,0.001]
[1756807431506,1.15920828,110560.0,110550.0,0.001]
[1756807434093,1.15924828,110560.0,110550.0,0.001]
[1756807435040,1.00836828,110560.0,110550.0,0.001]
[1756807435180,1.15924828,110560.0,110550.0,0.00423]
[1756807435390,1.15924828,110560.0,110550.0,0.001]
[1756807435594,1.51343856,110560.0,110550.0,0.001]
[1756807438624,1.36255856,110560.0,110550.0,0.001]
[1756807438758,1.51343856,110560.0,110550.0,0.001]
[1756807440700,1.51339856,110560.0,110550.0,0.00423]
[1756807441448,1.51339856,110560.0,110550.0,0.001]
[1756807442162,1.36255856,110560.0,110550.0,0.00423]
[1756807442368,1.51339856,110560.0,110550.0,0.00423]
[1756807443300,1.36255856,110560.0,110550.0,0.00423]
[1756807443461,1.51339856,110560.0,110550.0,0.00423]
[1756807444515,1.51339856,110560.0,110550.0,0.001]
[1756807445488,1.51335856,110560.0,110550.0,0.00423]
[1756807447729,0.6541179,110560.0,110550.0,0.00636]
[1756807447934,1.22933791,110560.0,110550.0,0.18727361]
[1756807448152,0.35422033,110560.0,110550.0,0.18727361]
[1756807448401,0.25044096,110570.0,110560.0,0.18089725]
[1756807448402,0.06956,110570.0,110560.0,0.18089725]
[1756807448625,0.68590121,110570.0,110560.0,0.18638503]
[1756807449729,0.68690121,110570.0,110560.0,0.18638503]
[1756807449953,0.1538,110570.0,110560.0,0.20913503]
[1756807450206,0.50802033,110570.0,110560.0,0.20913503]
[1756807450448,0.15384,110570.0,110560.0,0.23633063]
[1756807450673,0.50706033,110570.0,110560.0,0.23633063]
[1756807450889,0.50706033,110570.0,110560.0,0.23733063]
[1756807451103,0.15084,110570.0,110560.0,0.23733063]
[1756807451332,0.50506033,110570.0,110560.0,0.23733063]
[1756807452907,0.50502033,110570.0,110560.0,0.23733063]
[1756807453509,0.35422033,110570.0,110560.0,0.23733063]
[1756807453717,0.1508,110570.0,110560.0,0.23733063]
[1756807454393,0.54414298,110580.0,110570.0,0.18088088]
[1756807454608,0.68592486,110580.0,110570.0,0.18610088]
[1756807454844,0.68592486,110580.0,110570.0,0.00522]
[1756807455094,1.04014519,110580.0,110570.0,0.00522]
[1756807455606,0.68592486,110580.0,110570.0,0.00522]
[1756807455843,0.89030519,110580.0,110570.0,0.00522]
[1756807456072,1.04114519,110580.0,110570.0,0.00522]
[1756807458218,1.04114519,110580.0,110570.0,0.18610088]
[1756807458457,1.04114519,110580.0,110570.0,0.00522]
[1756807459700,1.04110519,110580.0,110570.0,0.00522]
[1756807460809,1.04110519,110580.0,110570.0,0.18610088]
[1756807461879,1.04110519,110580.0,110570.0,0.00522]
[1756807462281,1.04106519,110580.0,110570.0,0.00522]
[1756807463153,0.68684486,110580.0,110570.0,0.00522]
[1756807463361,0.68684486,110580.0,110570.0,0.18610088]
[1756807463566,0.15176,110580.0,110570.0,0.18610088]
[1756807463792,0.15176,110580.0,110570.0,0.21329303]
[1756807464619,0.15076,110580.0,110570.0,0.21329303]
[1756807464845,0.33262453,110580.0,110570.0,0.21329303]
[1756807464991,0.68784486,110580.0,110570.0,0.21329303]
[1756807465189,0.68584486,110580.0,110570.0,0.21329303]
[1756807465639,0.68584486,110580.0,110570.0,0.21529303]
[1756807468120,0.50498033,110580.0,110570.0,0.21529303]
[1756807468979,0.68584486,110580.0,110570.0,0.21529303]
[1756807469768,0.50498033,110580.0,110570.0,0.21529303]
[1756807470301,0.62111592,110590.0,110580.0,0.18086453]
[1756807470529,0.62111592,110590.0,110580.0,0.18608453]
[1756807470530,0.07697612,110590.0,110580.0,0.18608453]
[1756807470760,0.22765612,110590.0,110580.0,0.18608453]
[1756807471412,0.22765612,110590.0,110580.0,0.21327447]
[1756807471668,0.41050429,110590.0,110580.0,0.21327447]
[1756807472452,0.76472462,110590.0,110580.0,0.21327447]
[1756807472644,0.58387645,110590.0,110580.0,0.21327447]
[1756807472873,0.07897612,110590.0,110580.0,0.21327447]
[1756807473094,0.58191645,110590.0,110580.0,0.21327447]
[1756807474410,0.58291645,110590.0,110580.0,0.21427447]
[1756807474835,0.58191645,110590.0,110580.0,0.21427447]
[1756807475264,0.58191645,110590.0,110580.0,0.21527447]
[1756807475893,0.76276462,110590.0,110580.0,0.02918994]
[1756807476145,0.76276462,110590.0,110580.0,0.002]
[1756807476146,1.14520118,110590.0,110580.0,0.002]
[1756807476346,1.57711717,110590.0,110580.0,0.002]
[1756807477217,1.59654148,110590.0,110580.0,0.002]
[1756807477430,1.59654148,110590.0,110580.0,0.001]
[1756807477715,0.18088088,110570.0,110560.0,0.03040993]
[1756807477891,0.68578121,110570.0,110560.0,0.03040993]
[1756807479218,0.68578121,110570.0,110560.0,0.03240993]
[1756807483592,1.04000154,110570.0,110560.0,0.03240993]
[1756807483796,1.04000154,110570.0,110560.0,0.00212778]
[1756807484807,1.04000154,110570.0,110560.0,0.00112778]
[1756807485040,1.04000154,110570.0,110560.0,0.00012778]
[1756807487226,0.88932154,110570.0,110560.0,0.00216778]
[1756807487450,0.68578121,110570.0,110560.0,0.00509778]
[1756807487631,0.68578121,110570.0,110560.0,0.18599503]
[1756807488459,0.68578121,110570.0,110560.0,0.00509778]
[1756807489242,0.68578121,110570.0,110560.0,0.00609778]
[1756807490955,0.68578121,110570.0,110560.0,0.18699503]
[1756807491309,0.68578121,110570.0,110560.0,0.00709778]
[1756807491881,0.33156088,110570.0,110560.0,0.18799503]
[1756807492105,0.68578121,110570.0,110560.0,0.18799503]
[1756807492322,0.68578121,110570.0,110560.0,0.00709778]
[1756807492737,0.68578121,110570.0,110560.0,0.18799503]
[1756807493280,0.33156088,110570.0,110560.0,0.18799503]
[1756807493489,0.68578121,110570.0,110560.0,0.18799503]
[1756807493931,0.68578121,110570.0,110560.0,0.00709778]
[1756807495595,0.68562615,110570.0,110560.0,0.18799503]
[1756807497253,0.53494615,110570.0,110560.0,0.18799503]
[1756807497465,0.68598615,110570.0,110560.0,0.18799503]
[1756807497870,0.68594615,110570.0,110560.0,0.18799503]
[1756807499388,0.68594615,110570.0,110560.0,0.00709778]
[1756807499558,0.68594615,110570.0,110560.0,0.18799503]
[1756807500741,0.70294615,110570.0,110560.0,0.18799503]
[1756807501622,0.70294615,110570.0,110560.0,0.00212778]
[1756807501829,0.70294615,110570.0,110560.0,0.00505778]
[1756807502012,0.70294615,110570.0,110560.0,0.00709778]
[1756807502653,0.70294615,110570.0,110560.0,0.00609778]
[1756807503333,0.49421979,110570.0,110560.0,0.00609778]
[1756807503540,0.67510067,110570.0,110560.0,0.00509778]
[1756807504743,0.67510067,110570.0,110560.0,0.00305778]
[1756807505174,0.67510067,110570.0,110560.0,0.00505778]
[1756807506022,0.49421979,110570.0,110560.0,0.00505778]
[1756807506686,0.49421979,110570.0,110560.0,0.00709778]
[1756807506873,0.49421979,110570.0,110560.0,0.00505778]
[1756807507522,0.49421979,110570.0,110560.0,0.00709778]
[1756807507762,0.49421979,110570.0,110560.0,0.00505778]
[1756807511376,0.49421979,110570.0,110560.0,0.00709778]
[1756807511799,0.67510067,110570.0,110560.0,0.00709778]
[1756807512599,0.67510067,110570.0,110560.0,0.00212778]
[1756807513040,0.67510067,110570.0,110560.0,0.00512778]
[1756807513895,0.67510067,110570.0,110560.0,0.00716778]
[1756807514292,0.67510067,110570.0,110560.0,0.00212778]
[1756807514521,1.48054545,110570.0,110560.0,0.00212778]
[1756807514736,1.13281594,110570.0,110560.0,0.00212778]
[1756807515927,1.5787972,110570.0,110560.0,0.00112778]
[1756807516277,1.52806514,110570.0,110560.0,0.00012778]
[1756807517532,1.51216675,110570.0,110560.0,0.00012778]
[1756807517744,1.53104504,110570.0,110560.0,0.00012778]
[1756807517994,1.53004504,110570.0,110560.0,0.00012778]
[1756807518420,1.50675116,110570.0,110560.0,0.00012778]
[1756807518636,1.5310431,110570.0,110560.0,0.00012778]
[1756807518852,1.5357684,110570.0,110560.0,0.00012778]
[1756807519276,1.5337684,110570.0,110560.0,0.00012778]
[1756807519518,1.5357684,110570.0,110560.0,0.00012778]
[1756807521431,1.51147646,110570.0,110560.0,0.00012778]
[1756807522988,1.53940194,110570.0,110560.0,0.00012778]
[1756807525621,1.53895256,110570.0,110560.0,0.00012778]
[1756807525844,1.53895256,110570.0,110560.0,0.00312778]
[1756807526520,1.53895256,110570.0,110560.0,0.00012778]
[1756807526904,1.57885321,110570.0,110560.0,0.00012778]
[1756807527798,1.57889321,110570.0,110560.0,0.00312778]
[1756807528027,1.20794965,110570.0,110560.0,0.00516778]
[1756807528298,1.20794037,110570.0,110560.0,0.00516778]
[1756807528488,1.56200564,110570.0,110560.0,0.00516778]
[1756807528671,1.56200564,110570.0,110560.0,0.00312778]
[1756807528895,1.56200564,110570.0,110560.0,0.00012778]
[1756807529118,1.56200564,110570.0,110560.0,0.00312778]
[1756807530776,1.56200564,110570.0,110560.0,0.00012778]
[1756807531647,1.56200564,110570.0,110560.0,0.00312778]
[1756807533505,1.20794037,110570.0,110560.0,0.00312778]
[1756807537230,1.59022187,110570.0,110560.0,0.00012778]
[1756807537443,1.60707914,110570.0,110560.0,0.00012778]
[1756807537652,1.63428128,110570.0,110560.0,0.00012778]
[1756807538754,0.77507074,110570.0,110560.0,0.00012778]
[1756807538956,1.61742864,110570.0,110560.0,0.00012778]
[1756807539172,1.63428938,110570.0,110560.0,0.00012778]
[1756807539589,1.65858228,110570.0,110560.0,0.00012778]
[1756807542992,1.65859721,110570.0,110560.0,0.00012778]
[1756807543972,1.15345194,110570.0,110560.0,0.00012778]
[1756807544184,0.77117044,110570.0,110560.0,0.00532778]
[1756807544390,1.27627571,110570.0,110560.0,0.00532778]
[1756807544927,1.12523571,110570.0,110560.0,0.00532778]
[1756807545179,1.07374163,110570.0,110560.0,0.00532778]
[1756807545404,0.24309442,110570.0,110560.0,0.00532778]
[1756807545631,0.73136402,110570.0,110560.0,0.03020778]
[1756807545852,0.2004315,110570.0,110560.0,0.21110503]
[1756807546093,0.70557677,110570.0,110560.0,0.21110503]
[1756807546282,0.70457677,110570.0,110560.0,0.21110503]
[1756807546506,0.70257677,110570.0,110560.0,0.03020778]
[1756807548192,0.70457677,110570.0,110560.0,0.03020778]
[1756807548663,0.70465677,110570.0,110560.0,0.21110503]
[1756807548869,0.01955062,110570.0,110560.0,0.21110503]
[1756807549082,0.3515915,110570.0,110560.0,0.21110503]
[1756807549288,0.3505915,110570.0,110560.0,0.21110503]
[1756807549735,0.70465677,110570.0,110560.0,0.21110503]
[1756807549983,0.70265677,110570.0,110560.0,0.21110503]
[1756807550603,0.70265677,110570.0,110560.0,0.21210503]
[1756807550963,0.70265677,110570.0,110560.0,0.21310503]
[1756807555577,0.70263259,110570.0,110560.0,0.21310503]
[1756807555990,0.52175171,110570.0,110560.0,0.21310503]
[1756807556850,0.52175171,110570.0,110560.0,0.24029788]
[1756807557101,0.70263259,110570.0,110560.0,0.24029788]
[1756807557318,0.52175171,110570.0,110560.0,0.24029788]
[1756807557907,0.70263259,110570.0,110560.0,0.24029788]
[1756807558679,0.52175171,110570.0,110560.0,0.24029788]
[1756807559154,0.70263259,110570.0,110560.0,0.24029788]
[1756807561004,0.70263259,110570.0,110560.0,0.03452063]
[1756807561225,0.70263259,110570.0,110560.0,0.00732778]
[1756807561226,1.05667368,110570.0,110560.0,0.00732778]
[1756807561431,0.70263259,110570.0,110560.0,0.00732778]
[1756807562434,0.55147259,110570.0,110560.0,0.00732778]
[1756807562634,0.70259259,110570.0,110560.0,0.00732778]
[1756807563375,0.55147259,110570.0,110560.0,0.00732778]
[1756807563502,0.70259259,110570.0,110560.0,0.00732778]
[1756807564338,0.52171171,110570.0,110560.0,0.19048624]
[1756807564554,0.16767062,110570.0,110560.0,0.18822503]
[1756807564762,0.52171171,110570.0,110560.0,0.18822503]
[1756807564948,0.70259259,110570.0,110560.0,0.18822503]
[1756807565361,0.52171171,110570.0,110560.0,0.18822503]
[1756807565595,0.70259259,110570.0,110560.0,0.18822503]
[1756807565783,0.52171171,110570.0,110560.0,0.18822503]
[1756807566192,0.16767062,110570.0,110560.0,0.18822503]
[1756807566396,0.70259259,110570.0,110560.0,0.18822503]
[1756807569574,0.70255259,110570.0,110560.0,0.18822503]
[1756807571986,0.55147259,110570.0,110560.0,0.18822503]
[1756807572286,0.70251259,110570.0,110560.0,0.18822503]
[1756807572488,0.70251259,110570.0,110560.0,0.00732778]
[1756807572699,0.70251259,110570.0,110560.0,0.00533778]
[1756807573500,1.05655368,110570.0,110560.0,0.00212778]
[1756807574001,1.05655368,110570.0,110560.0,0.18302503]
[1756807574359,1.05655368,110570.0,110560.0,0.18620503]
[1756807574767,0.70251259,110570.0,110560.0,0.18829503]
[1756807575642,0.3484715,110570.0,110560.0,0.18829503]
[1756807576058,0.70251259,110570.0,110560.0,0.18829503]
[1756807579569,0.52785991,110570.0,110560.0,0.18829503]
[1756807582330,0.52785991,110570.0,110560.0,0.00212778]
[1756807582539,0.52785991,110570.0,110560.0,0.18620503]
[1756807582723,0.52785991,110570.0,110560.0,0.18829503]
[1756807582892,0.33192088,110570.0,110560.0,0.18829503]
[1756807583104,0.68596197,110570.0,110560.0,0.18829503]
[1756807583685,0.53492048,110580.0,110560.0,0.18829503]
[1756807583891,0.18087939,110580.0,110570.0,0.00318]
[1756807584101,1.04000157,110580.0,110570.0,0.00318]
[1756807585297,1.04000157,110580.0,110570.0,0.00248]
[1756807586151,0.88896157,110580.0,110570.0,0.00457]
[1756807586283,1.04000157,110580.0,110570.0,0.00248]
[1756807592295,1.04000157,110580.0,110570.0,0.00457]
[1756807598351,0.01949381,110580.0,110570.0,0.00457]
[1756807598568,0.51245721,110590.0,110570.0,0.3838121]
[1756807598773,0.51241721,110590.0,110580.0,0.18404453]
[1756807598999,0.51241721,110590.0,110580.0,0.18603453]
[1756807599182,0.69326538,110590.0,110580.0,0.18603453]
[1756807600144,0.69326538,110590.0,110580.0,0.00318]
[1756807600383,0.33922429,110590.0,110580.0,0.18391453]
[1756807600590,0.69326538,110590.0,110580.0,0.18690453]
[1756807600800,0.69326538,110590.0,110580.0,0.18790453]
[1756807601019,0.69326538,110590.0,110580.0,0.00704]
[1756807601205,0.69326538,110590.0,110580.0,0.18790453]
[1756807602374,0.33922429,110590.0,110580.0,0.18790453]
[1756807602578,0.54230538,110590.0,110580.0,0.18790453]
[1756807602794,0.51245721,110590.0,110580.0,0.18790453]
[1756807602997,0.69330538,110590.0,110580.0,0.18790453]
[1756807603643,0.00741612,110590.0,110580.0,0.18790453]
[1756807603996,0.51249721,110590.0,110580.0,0.18790453]
[1756807604581,0.69334538,110590.0,110580.0,0.18790453]
[1756807606380,0.51249721,110590.0,110580.0,0.18790453]
[1756807607126,0.36145721,110590.0,110580.0,0.18790453]
[1756807607332,0.51245721,110590.0,110580.0,0.18790453]
[1756807610304,0.00741612,110590.0,110580.0,0.18790453]
[1756807610523,0.00741612,110590.0,110580.0,0.33890453]
[1756807610707,0.00741612,110590.0,110580.0,0.83538043]
[1756807612851,0.00741612,110590.0,110580.0,0.48129934]
[1756807613062,0.00741612,110590.0,110580.0,0.83534043]
[1756807614504,0.00741612,110590.0,110580.0,0.48129934]
[1756807621658,0.00741612,110590.0,110580.0,0.45796934]
[1756807623659,0.00741612,110590.0,110580.0,0.45800934]
[1756807623904,0.00741612,110590.0,110580.0,0.30700934]
[1756807624113,0.00741612,110590.0,110580.0,0.45800934]
[1756807638481,0.00741612,110590.0,110580.0,0.18311882]
[1756807638691,0.54211745,110590.0,110580.0,0.36093335]
[1756807638901,0.54211745,110590.0,110580.0,0.18014882]
[1756807639078,0.54211745,110590.0,110580.0,0.02918882]
[1756807639239,0.69307745,110590.0,110580.0,0.02918882]
[1756807639488,0.69307745,110590.0,110580.0,0.002]
[1756807641584,1.03307745,110590.0,110580.0,0.002]
[1756807642543,1.03307745,110590.0,110580.0,0.001]
[1756807643266,0.52826429,110590.0,110580.0,0.00612]
[1756807643521,0.67922429,110590.0,110580.0,0.18698453]
[1756807643727,1.03307745,110590.0,110580.0,0.18598453]
[1756807644465,1.03307745,110590.0,110580.0,0.18698453]
[1756807644691,1.03307745,110590.0,110580.0,0.00612]
[1756807645089,1.03307745,110590.0,110580.0,0.001]
[1756807645311,1.03307745,110590.0,110580.0,0.003]
[1756807645526,1.03315745,110590.0,110580.0,0.00611]
[1756807645738,0.88211745,110590.0,110580.0,0.18898453]
[1756807645878,1.03315745,110590.0,110580.0,0.00812]
[1756807646601,0.88211745,110590.0,110580.0,0.00812]
[1756807646807,1.03315745,110590.0,110580.0,0.00812]
[1756807647373,1.03315745,110590.0,110580.0,0.00611]
[1756807647683,1.03315745,110590.0,110580.0,0.003]
[1756807648087,1.03315745,110590.0,110580.0,0.00611]
[1756807650147,1.03315745,110590.0,110580.0,0.003]
[1756807650355,1.4789266,110590.0,110580.0,0.003]
[1756807650571,1.49836862,110590.0,110580.0,0.003]
[1756807650785,1.54876724,110590.0,110580.0,0.003]
[1756807651036,0.18088088,110570.0,110560.0,0.00012778]
[1756807651250,0.68581404,110570.0,110560.0,0.00012778]
[1756807651906,0.68387927,110570.0,110560.0,0.00012778]
[1756807652093,1.02387927,110570.0,110560.0,0.00212778]
[1756807653537,1.02387927,110570.0,110560.0,0.00012778]
[1756807653749,1.02387927,110570.0,110560.0,0.00112778]
[1756807653909,1.02387927,110570.0,110560.0,0.00212778]
[1756807655125,1.05402716,110570.0,110560.0,0.00212778]
[1756807655322,1.43019975,110570.0,110560.0,0.00212778]
[1756807655525,1.62524306,110570.0,110560.0,0.00212778]
[1756807655732,0.18092998,110540.0,110530.0,0.00311]
[1756807655951,0.68590314,110540.0,110530.0,0.00311]
[1756807656166,0.68590314,110540.0,110530.0,0.00512]
[1756807656370,0.18094634,110530.0,110520.0,0.00363767]
[1756807656579,0.5347995,110530.0,110520.0,0.00363767]
[1756807656784,0.5347995,110530.0,110520.0,0.00564767]
[1756807656984,0.54373424,110530.0,110520.0,0.00564767]
[1756807658121,0.54373424,110530.0,110520.0,0.00764767]
[1756807658566,0.54373424,110530.0,110520.0,0.00964767]
[1756807666241,0.18988108,110530.0,110520.0,0.00964767]
[1756807666462,0.54373424,110530.0,110520.0,0.00964767]
[1756807669975,0.34386318,110530.0,110520.0,0.00964767]
[1756807670185,0.52480952,110530.0,110520.0,0.00964767]
[1756807670766,0.53367032,110530.0,110520.0,0.00964767]
[1756807671939,0.18980714,110530.0,110520.0,0.00964767]
[1756807672098,0.5436603,110530.0,110520.0,0.00964767]
[1756807672301,0.5436603,110530.0,110520.0,0.00763767]
[1756807672766,0.18980714,110530.0,110520.0,0.00969767]
[1756807672973,0.6947803,110530.0,110520.0,0.00969767]
[1756807676570,0.6947403,110530.0,110520.0,0.00969767]
[1756807676770,0.5436603,110530.0,110520.0,0.00969767]
[1756807676975,0.6947403,110530.0,110520.0,0.00969767]
[1756807677502,0.69519196,110530.0,110520.0,0.00969767]
[1756807678124,0.54411196,110530.0,110520.0,0.00969767]
[1756807678294,0.69519196,110530.0,110520.0,0.00969767]
[1756807678948,0.18980714,110530.0,110520.0,0.00969767]
[1756807679156,0.53525116,110530.0,110520.0,0.19292242]
[1756807679314,0.68629116,110530.0,110520.0,0.19066039]
[1756807680545,0.18092998,110540.0,110520.0,0.54496521]